fUST/lending_fUST_20250222
["ID","MTS","AMOUNT","RATE_DAILY","PERIOD"]
[353995254,1740176862718,-500.0,0.0001378,2]
[353995255,1740176862743,-500.0,0.0001378,2]
[353995256,1740176862764,-500.0,0.0001378,2]
[353995257,1740176862785,-500.0,0.0001378,2]
[353995258,1740176862806,-500.0,0.0001378,2]
[353995259,1740176862829,-500.0,0.0001378,2]
[353995260,1740176862850,-500.0,0.0001378,2]
[353995261,1740176862872,-218.16671091,0.0001378,2]
[353995265,1740176913272,1079.29552904,0.0001781,90]
[353995269,1740176981821,222.516349,9.041e-05,2]
[353995308,1740177032419,-168.0715141,0.000134,2]
[353995309,1740177032430,-300.0,0.00013499,2]
[353995311,1740177032439,-10792.63911385,0.000135,2]
[353995312,1740177032451,-31583.07134303,0.000135,2]
[353995313,1740177032498,-1095.69529847,0.000135,2]
[353995314,1740177032510,-2957.20543956,0.000135,2]
[353995315,1740177032521,-605.45,0.000135,2]
[353995316,1740177032584,-13370.99940826,0.000135,2]
[353995317,1740177032594,-390.99458106,0.000135,2]
[353995318,1740177032603,-500.0,0.00013698,2]
[353995319,1740177032612,-500.0,0.00013698,2]
[353995320,1740177032622,-500.0,0.00013698,2]
[353995321,1740177032631,-500.0,0.00013698,2]
[353995322,1740177032640,-500.0,0.00013698,2]
[353995323,1740177032649,-500.0,0.00013698,2]
[353995324,1740177032658,-609.21,0.00013698,2]
[353995325,1740177032667,-500.0,0.00013698,2]
[353995326,1740177032676,-574.21,0.00013698,2]
[353995327,1740177032685,-500.0,0.00013698,2]
[353995328,1740177032695,-1054.04,0.00013698,2]
[353995329,1740177032704,-500.0,0.00013698,2]
[353995330,1740177032713,-500.0,0.00013698,2]
[353995331,1740177032725,-500.0,0.00013698,2]
[353995332,1740177032740,-500.0,0.00013698,2]
[353995333,1740177032755,-500.0,0.00013698,2]
[353995334,1740177032768,-500.0,0.00013698,2]
[353995335,1740177032780,-500.0,0.00013698,2]
[353995336,1740177032795,-500.0,0.00013698,2]
[353995337,1740177032810,-500.0,0.00013698,2]
[353995338,1740177032823,-500.0,0.00013698,2]
[353995339,1740177032838,-831.93,0.00013698,2]
[353995341,1740177032851,-500.0,0.00013698,2]
[353995342,1740177032864,-500.0,0.00013698,2]
[353995343,1740177032878,-500.0,0.00013698,2]
[353995344,1740177032890,-500.0,0.00013698,2]
[353995345,1740177032902,-500.0,0.00013698,2]
[353995346,1740177032914,-500.0,0.00013698,2]
[353995347,1740177032927,-500.0,0.00013698,2]
[353995348,1740177032941,-500.0,0.00013698,2]
[353995349,1740177032953,-775.86,0.00013698,2]
[353995350,1740177032964,-500.0,0.00013698,2]
[353995351,1740177032975,-500.0,0.00013698,2]
[353995352,1740177032989,-500.0,0.00013698,2]
[353995353,1740177033006,-545.32,0.00013698,2]
[353995354,1740177033019,-501.44541236,0.00013698,2]
[353995355,1740177033034,-500.0,0.00013698,2]
[353995356,1740177033047,-500.98422258,0.00013698,2]
[353995357,1740177033064,-500.0,0.00013698,2]
[353995358,1740177033079,-500.29985635,0.00013698,2]
[353995359,1740177033095,-500.0,0.00013698,2]
[353995360,1740177033106,-500.0,0.00013698,2]
[353995361,1740177033116,-500.0,0.00013698,2]
[353995362,1740177033127,-500.0,0.00013698,2]
[353995363,1740177033141,-500.0,0.00013698,2]
[353995364,1740177033157,-500.0,0.00013698,2]
[353995365,1740177033172,-500.0,0.00013698,2]
[353995366,1740177033182,-500.0,0.00013698,2]
[353995367,1740177033195,-500.0,0.00013698,2]
[353995368,1740177033206,-500.0,0.00013698,2]
[353995369,1740177033219,-575.67,0.00013698,2]
[353995370,1740177033231,-264.79835381,0.00013698,2]
[353995371,1740177033241,-1833.67,0.00013698,2]
[353995372,1740177033253,-500.0,0.00013698,2]
[353995373,1740177033264,-500.0,0.00013698,2]
[353995374,1740177033275,-507.19517196,0.00013698,2]
[353995375,1740177033286,-500.0,0.00013698,2]
[353995376,1740177033298,-500.0,0.00013698,2]
[353995377,1740177033312,-500.0,0.00013698,2]
[353995378,1740177033323,-500.0,0.00013698,2]
[353995379,1740177033336,-500.0,0.00013698,2]
[353995380,1740177033348,-500.0,0.00013698,2]
[353995381,1740177033360,-500.0,0.00013698,2]
[353995382,1740177033371,-500.0,0.00013698,2]
[353995383,1740177033383,-500.0,0.00013698,2]
[353995384,1740177033395,-500.0,0.00013698,2]
[353995385,1740177033406,-500.0,0.00013698,2]
[353995386,1740177033418,-500.0,0.00013698,2]
[353995387,1740177033429,-500.0,0.00013698,2]
[353995388,1740177033441,-500.0,0.00013698,2]
[353995389,1740177033453,-500.0,0.00013698,2]
[353995390,1740177033465,-500.0,0.00013698,2]
[353995391,1740177033476,-500.0,0.00013698,2]
[353995392,1740177033488,-500.0,0.00013698,2]
[353995393,1740177033500,-500.0,0.00013698,2]
[353995394,1740177033511,-500.0,0.00013698,2]
[353995395,1740177033524,-500.20528795,0.00013698,2]
[353995396,1740177033537,-500.0,0.00013698,2]
[353995397,1740177033546,-500.0,0.00013698,2]
[353995398,1740177033559,-500.0,0.00013698,2]
[353995399,1740177033568,-500.0,0.00013698,2]
[353995400,1740177033578,-500.0,0.00013698,2]
[353995401,1740177033588,-500.0,0.00013698,2]
[353995402,1740177033598,-736.31,0.00013698,2]
[353995403,1740177033607,-501.64956406,0.00013698,2]
[353995404,1740177033616,-500.0,0.00013698,2]
[353995405,1740177033626,-333.12353233,0.00013698,2]
[353995406,1740177033636,-500.0,0.00013698,2]
[353995407,1740177033645,-471.44,0.00013698,2]
[353995408,1740177033655,-500.0,0.00013698,2]
[353995409,1740177033665,-500.0,0.00013698,2]
[353995410,1740177033674,-785.86,0.00013698,2]
[353995411,1740177033684,-500.0,0.00013698,2]
[353995412,1740177033693,-500.0,0.00013698,2]
[353995413,1740177033703,-500.0,0.00013698,2]
[353995414,1740177033712,-501.8924312,0.00013698,2]
[353995415,1740177033722,-1727.65,0.00013698,2]
[353995416,1740177033880,-500.0,0.00013698,2]
[353995417,1740177033898,-500.0,0.00013698,2]
[353995418,1740177033908,-500.0,0.00013698,2]
[353995419,1740177033918,-500.0,0.00013698,2]
[353995420,1740177033928,-500.0,0.00013773,2]
[353995421,1740177033937,-500.51061943,0.00013773,2]
[353995422,1740177033945,-500.0,0.00013779,2]
[353995423,1740177033955,-281.83328909,0.0001378,2]
[353995424,1740177033965,-500.0,0.0001378,2]
[353995425,1740177033974,-500.0,0.0001378,2]
[353995426,1740177033983,-500.0,0.0001378,2]
[353995427,1740177033994,-500.0,0.0001378,2]
[353995428,1740177034006,-500.0,0.0001378,2]
[353995429,1740177034016,-500.0,0.0001378,2]
[353995430,1740177034025,-500.0,0.0001378,2]
[353995431,1740177034035,-500.0,0.0001378,2]
[353995432,1740177034045,-502.90840701,0.0001378,2]
[353995433,1740177034056,-500.0,0.0001378,2]
[353995434,1740177034065,-500.0,0.0001378,2]
[353995435,1740177034077,-500.0,0.0001378,2]
[353995436,1740177034087,-500.0,0.0001378,2]
[353995437,1740177034097,-500.0,0.0001378,2]
[353995438,1740177034107,-500.0,0.0001378,2]
[353995439,1740177034116,-500.0,0.0001378,2]
[353995440,1740177034126,-500.0,0.0001378,2]
[353995441,1740177034135,-500.0,0.0001378,2]
[353995442,1740177034145,-500.0,0.0001378,2]
[353995443,1740177034155,-500.0,0.0001378,2]
[353995444,1740177034165,-500.0,0.0001378,2]
[353995445,1740177034174,-500.0,0.0001378,2]
[353995446,1740177034184,-500.0,0.0001378,2]
[353995447,1740177034193,-500.0,0.0001378,2]
[353995448,1740177034203,-500.0,0.0001378,2]
[353995449,1740177034213,-500.0,0.0001378,2]
[353995450,1740177034223,-500.0,0.0001378,2]
[353995451,1740177034232,-500.0,0.0001378,2]
[353995452,1740177034241,-500.0,0.0001378,2]
[353995453,1740177034251,-500.0,0.0001378,2]
[353995454,1740177034261,-500.0,0.0001378,2]
[353995455,1740177034270,-500.0,0.0001378,2]
[353995456,1740177034280,-500.0,0.0001378,2]
[353995457,1740177034290,-500.0,0.0001378,2]
[353995458,1740177034299,-500.0,0.0001378,2]
[353995459,1740177034312,-500.0,0.0001378,2]
[353995460,1740177034321,-500.0,0.0001378,2]
[353995461,1740177034330,-500.59524372,0.0001378,2]
[353995462,1740177034340,-500.0,0.0001378,2]
[353995463,1740177034349,-500.0,0.0001378,2]
[353995464,1740177034359,-500.0,0.0001378,2]
[353995465,1740177034368,-500.0,0.0001378,2]
[353995466,1740177034378,-500.0,0.0001378,2]
[353995467,1740177034387,-500.0,0.0001378,2]
[353995468,1740177034397,-500.0,0.0001378,2]
[353995469,1740177034407,-412.65198268,0.0001378,2]
[353995470,1740177034417,-500.0,0.0001378,2]
[353995471,1740177034426,-500.0,0.0001378,2]
[353995472,1740177034435,-500.0,0.0001378,2]
[353995473,1740177034444,-500.0,0.0001378,2]
[353995474,1740177034453,-500.0,0.0001378,2]
[353995475,1740177034463,-500.0,0.0001378,2]
[353995476,1740177034472,-500.0,0.0001378,2]
[353995477,1740177034481,-500.0,0.0001378,2]
[353995478,1740177034490,-500.0,0.0001378,2]
[353995479,1740177034499,-500.0,0.0001378,2]
[353995480,1740177034508,-500.0,0.0001378,2]
[353995481,1740177034518,-500.0,0.0001378,2]
[353995482,1740177034527,-500.0,0.0001378,2]
[353995483,1740177034536,-500.0,0.0001378,2]
[353995484,1740177034545,-500.0,0.0001378,2]
[353995485,1740177034558,-500.0,0.0001378,2]
[353995486,1740177034568,-500.0,0.0001378,2]
[353995487,1740177034578,-406.20322179,0.0001378,2]
[353995488,1740177034588,-500.0,0.0001378,2]
[353995489,1740177034597,-500.0,0.0001378,2]
[353995490,1740177034607,-500.0,0.0001378,2]
[353995491,1740177034616,-500.0,0.0001378,2]
[353995492,1740177034626,-500.0,0.0001378,2]
[353995493,1740177034635,-500.0,0.0001378,2]
[353995494,1740177034644,-500.0,0.0001378,2]
[353995495,1740177034654,-500.0,0.0001378,2]
[353995496,1740177034664,-500.0,0.0001378,2]
[353995497,1740177034674,-500.0,0.0001378,2]
[353995498,1740177034684,-287.91622031,0.0001378,2]
[353995499,1740177034694,-500.0,0.0001378,2]
[353995500,1740177034703,-500.0,0.0001378,2]
[353995501,1740177034713,-500.0,0.0001378,2]
[353995502,1740177034722,-500.0,0.0001378,2]
[353995503,1740177034732,-500.0,0.0001378,2]
[353995504,1740177034741,-500.0,0.0001378,2]
[353995505,1740177034751,-3477.23,0.0001378,2]
[353995506,1740177034760,-500.0,0.0001378,2]
[353995507,1740177034770,-500.0,0.0001378,2]
[353995508,1740177034779,-500.0,0.0001378,2]
[353995509,1740177034789,-500.0,0.0001378,2]
[353995510,1740177034799,-500.0,0.0001378,2]
[353995511,1740177034814,-500.0,0.0001378,2]
[353995512,1740177034823,-500.0,0.0001378,2]
[353995513,1740177034833,-500.0,0.0001378,2]
[353995514,1740177034843,-429.9137985,0.0001378,2]
[353995515,1740177034853,-500.0,0.0001378,2]
[353995516,1740177034862,-500.10621589,0.0001378,2]
[353995517,1740177034871,-500.0,0.0001378,2]
[353995518,1740177034880,-500.0,0.0001378,2]
[353995519,1740177034891,-6424.82,0.0001378,2]
[353995520,1740177034901,-500.0,0.0001378,2]
[353995521,1740177034911,-500.0,0.0001378,2]
[353995522,1740177034920,-500.0,0.0001378,2]
[353995523,1740177034930,-500.0,0.0001378,2]
[353995524,1740177034939,-500.0,0.0001378,2]
[353995525,1740177034949,-500.0,0.0001378,2]
[353995526,1740177034958,-500.0,0.0001378,2]
[353995527,1740177034967,-500.0,0.0001378,2]
[353995528,1740177034977,-500.0,0.0001378,2]
[353995529,1740177034987,-500.0,0.0001378,2]
[353995530,1740177034997,-500.0,0.0001378,2]
[353995531,1740177035010,-512.25180058,0.0001378,2]
[353995532,1740177035019,-500.0,0.0001378,2]
[353995533,1740177035029,-579.82,0.0001378,2]
[353995534,1740177035039,-673.37,0.0001378,2]
[353995535,1740177035049,-500.0,0.0001378,2]
[353995536,1740177035061,-500.0,0.0001378,2]
[353995537,1740177035070,-500.0,0.0001378,2]
[353995538,1740177035081,-2668.84,0.0001378,2]
[353995539,1740177035091,-500.0,0.0001378,2]
[353995540,1740177035100,-500.0,0.0001378,2]
[353995541,1740177035109,-500.0,0.0001378,2]
[353995542,1740177035119,-500.0,0.0001378,2]
[353995543,1740177035128,-500.0,0.0001378,2]
[353995544,1740177035137,-500.0,0.0001378,2]
[353995545,1740177035147,-500.0,0.0001378,2]
[353995546,1740177035156,-500.0,0.0001378,2]
[353995547,1740177035165,-500.0,0.0001378,2]
[353995548,1740177035174,-500.0,0.0001378,2]
[353995549,1740177035184,-311.0,0.0001378,2]
[353995550,1740177035195,-1054.04,0.0001378,2]
[353995551,1740177035205,-500.0,0.0001378,2]
[353995552,1740177035215,-500.0,0.0001378,2]
[353995553,1740177035224,-500.0,0.0001378,2]
[353995554,1740177035233,-500.0,0.0001378,2]
[353995555,1740177035242,-831.93,0.0001378,2]
[353995556,1740177035252,-500.0,0.0001378,2]
[353995557,1740177035261,-500.0,0.0001378,2]
[353995558,1740177035270,-500.0,0.0001378,2]
[353995559,1740177035279,-539.06721666,0.0001378,2]
[353995560,1740177035288,-775.86,0.0001378,2]
[353995561,1740177035297,-500.0,0.0001378,2]
[353995562,1740177035308,-545.32,0.0001378,2]
[353995563,1740177035317,-500.0,0.0001378,2]
[353995564,1740177035327,-537.26,0.0001378,2]
[353995565,1740177035336,-575.67,0.0001378,2]
[353995566,1740177035345,-1833.67,0.0001378,2]
[353995567,1740177035354,-500.0,0.0001378,2]
[353995568,1740177035363,-500.0,0.0001378,2]
[353995569,1740177035372,-500.0,0.0001378,2]
[353995570,1740177035381,-500.0,0.0001378,2]
[353995571,1740177035391,-500.0,0.0001378,2]
[353995572,1740177035400,-736.31,0.0001378,2]
[353995573,1740177035409,-500.0,0.0001378,2]
[353995574,1740177035418,-785.86,0.0001378,2]
[353995575,1740177035428,-500.0,0.0001378,2]
[353995576,1740177035436,-1727.65,0.0001378,2]
[353995577,1740177035445,-500.0,0.0001378,2]
[353995578,1740177035454,-151.0,0.000138,2]
[353995579,1740177035463,-151.0,0.000138,2]
[353995580,1740177035472,-500.0,0.00013862,2]
[353995581,1740177035482,-249.9272696,0.00013862,2]
[353995582,1740177035491,-500.0,0.00013862,2]
[353995583,1740177035500,-500.0,0.00013862,2]
[353995584,1740177035509,-500.0,0.00013863,2]
[353995585,1740177035518,-500.0,0.00013863,2]
[353995586,1740177035527,-500.0,0.00013863,2]
[353995587,1740177035537,-500.0,0.00013863,2]
[353995588,1740177035546,-500.0,0.00013863,2]
[353995589,1740177035558,-500.0,0.00013863,2]
[353995590,1740177035568,-500.0,0.00013863,2]
[353995591,1740177035577,-500.0,0.00013863,2]
[353995592,1740177035586,-500.0,0.00013863,2]
[353995593,1740177035595,-500.0,0.00013863,2]
[353995594,1740177035604,-500.0,0.00013863,2]
[353995595,1740177035613,-234.03108265,0.00013863,2]
[353995596,1740177035622,-500.0,0.00013863,2]
[353995597,1740177035631,-500.0,0.00013863,2]
[353995598,1740177035640,-500.0,0.00013863,2]
[353995599,1740177035649,-500.0,0.00013863,2]
[353995600,1740177035658,-500.0,0.00013863,2]
[353995601,1740177035667,-500.0,0.00013863,2]
[353995602,1740177035676,-500.0,0.00013863,2]
[353995603,1740177035686,-3477.23,0.00013863,2]
[353995604,1740177035695,-500.0,0.00013863,2]
[353995605,1740177035704,-500.0,0.00013863,2]
[353995606,1740177035714,-500.0,0.00013863,2]
[353995607,1740177035723,-500.0,0.00013863,2]
[353995608,1740177035732,-500.0,0.00013863,2]
[353995609,1740177035742,-500.0,0.00013863,2]
[353995610,1740177035751,-502.01533221,0.00013863,2]
[353995611,1740177035760,-500.0,0.00013863,2]
[353995612,1740177035769,-204.55219927,0.00013863,2]
[353995613,1740177035779,-500.0,0.00013863,2]
[353995614,1740177035788,-6424.82,0.00013863,2]
[353995615,1740177035798,-540.86,0.00013863,2]
[353995616,1740177035808,-500.0,0.00013863,2]
[353995617,1740177035818,-500.0,0.00013863,2]
[353995618,1740177035827,-500.0,0.00013863,2]
[353995619,1740177035836,-500.0,0.00013863,2]
[353995620,1740177035846,-500.0,0.00013863,2]
[353995621,1740177035855,-500.0,0.00013863,2]
[353995622,1740177035865,-320.86510125,0.00013863,2]
[353995623,1740177035874,-500.0,0.00013863,2]
[353995624,1740177035883,-500.0,0.00013863,2]
[353995625,1740177035893,-500.0,0.00013863,2]
[353995626,1740177035902,-500.0,0.00013863,2]
[353995627,1740177035911,-579.82,0.00013863,2]
[353995628,1740177035920,-673.37,0.00013863,2]
[353995629,1740177035930,-500.0,0.00013863,2]
[353995630,1740177035939,-2668.84,0.00013863,2]
[353995631,1740177035948,-500.0,0.00013863,2]
[353995632,1740177035957,-500.0,0.00013863,2]
[353995633,1740177035967,-500.0,0.00013863,2]
[353995634,1740177035976,-500.0,0.00013863,2]
[353995635,1740177035985,-500.0,0.00013863,2]
[353995636,1740177035998,-500.0,0.00013863,2]
[353995637,1740177036006,-1054.04,0.00013863,2]
[353995638,1740177036015,-500.0,0.00013863,2]
[353995639,1740177036024,-831.93,0.00013863,2]
[353995640,1740177036034,-500.0,0.00013863,2]
[353995641,1740177036043,-775.86,0.00013863,2]
[353995642,1740177036052,-500.0,0.00013863,2]
[353995643,1740177036061,-545.32,0.00013863,2]
[353995644,1740177036073,-575.67,0.00013863,2]
[353995645,1740177036082,-1833.67,0.00013863,2]
[353995646,1740177036091,-500.0,0.00013863,2]
[353995647,1740177036100,-500.0,0.00013863,2]
[353995648,1740177036109,-500.0,0.00013863,2]
[353995649,1740177036118,-500.0,0.00013863,2]
[353995650,1740177036127,-500.0,0.00013863,2]
[353995651,1740177036137,-736.31,0.00013863,2]
[353995652,1740177036146,-500.0,0.00013863,2]
[353995653,1740177036155,-785.86,0.00013863,2]
[353995654,1740177036164,-1727.65,0.00013863,2]
[353995655,1740177036173,-500.0,0.00013863,2]
[353995656,1740177036182,-236.59682932,0.00013899,2]
[353995657,1740177036192,-151.0,0.000139,2]
[353995658,1740177036201,-151.0,0.000139,2]
[353995659,1740177036210,-500.0,0.00013944,2]
[353995660,1740177036219,-500.0,0.00013945,2]
[353995661,1740177036228,-500.0,0.00013945,2]
[353995662,1740177036237,-3477.23,0.00013945,2]
[353995663,1740177036246,-500.0,0.00013945,2]
[353995664,1740177036255,-6424.82,0.00013945,2]
[353995665,1740177036264,-500.0,0.00013945,2]
[353995666,1740177036273,-500.0,0.00013945,2]
[353995667,1740177036282,-579.82,0.00013945,2]
[353995668,1740177036290,-673.37,0.00013945,2]
[353995669,1740177036299,-2668.84,0.00013945,2]
[353995670,1740177036309,-500.0,0.00013945,2]
[353995671,1740177036319,-500.0,0.00013945,2]
[353995672,1740177036328,-1054.04,0.00013945,2]
[353995673,1740177036337,-500.0,0.00013945,2]
[353995674,1740177036346,-831.93,0.00013945,2]
[353995675,1740177036355,-500.0,0.00013945,2]
[353995676,1740177036364,-775.86,0.00013945,2]
[353995677,1740177036373,-500.0,0.00013945,2]
[353995678,1740177036383,-545.32,0.00013945,2]
[353995679,1740177036392,-575.67,0.00013945,2]
[353995680,1740177036401,-1833.67,0.00013945,2]
[353995681,1740177036410,-500.0,0.00013945,2]
[353995682,1740177036420,-500.0,0.00013945,2]
[353995683,1740177036429,-500.0,0.00013945,2]
[353995684,1740177036438,-500.0,0.00013945,2]
[353995685,1740177036447,-500.0,0.00013945,2]
[353995686,1740177036456,-736.31,0.00013945,2]
[353995687,1740177036464,-506.66,0.00013945,2]
[353995688,1740177036473,-785.86,0.00013945,2]
[353995689,1740177036482,-1727.65,0.00013945,2]
[353995690,1740177036491,-169.63313455,0.00013986,2]
[353995691,1740177036500,-6084.82543319,0.00013989,2]
[353995692,1740177036509,-6084.82543319,0.0001399,2]
[353995693,1740177036518,-6084.82543319,0.00013995,2]
[353995694,1740177036527,-151.0,0.00014,2]
[353995695,1740177036536,-568.1156279,0.00014,2]
[353995696,1740177036545,-500.0,0.00014027,2]
[353995697,1740177036642,-3477.23,0.00014027,2]
[353995698,1740177036651,-500.0,0.00014027,2]
[353995699,1740177036661,-6424.82,0.00014027,2]
[353995700,1740177036670,-500.0,0.00014027,2]
[353995701,1740177036679,-435.49,0.00014027,2]
[353995702,1740177036688,-579.82,0.00014027,2]
[353995703,1740177036698,-673.37,0.00014027,2]
[353995704,1740177036707,-2668.84,0.00014027,2]
[353995705,1740177036716,-500.0,0.00014027,2]
[353995706,1740177036725,-500.0,0.00014027,2]
[353995707,1740177036735,-1054.04,0.00014027,2]
[353995708,1740177036744,-500.0,0.00014027,2]
[353995709,1740177036753,-831.93,0.00014027,2]
[353995710,1740177036762,-500.0,0.00014027,2]
[353995711,1740177036771,-775.86,0.00014027,2]
[353995712,1740177036780,-500.0,0.00014027,2]
[353995713,1740177036789,-545.32,0.00014027,2]
[353995714,1740177036799,-575.67,0.00014027,2]
[353995715,1740177036810,-1833.67,0.00014027,2]
[353995716,1740177036819,-500.0,0.00014027,2]
[353995717,1740177036828,-500.0,0.00014027,2]
[353995718,1740177036837,-500.0,0.00014027,2]
[353995719,1740177036846,-500.0,0.00014027,2]
[353995720,1740177036855,-500.0,0.00014027,2]
[353995721,1740177036864,-736.31,0.00014027,2]
[353995722,1740177036874,-785.86,0.00014027,2]
[353995723,1740177036883,-1727.65,0.00014027,2]
[353995724,1740177036892,-151.0,0.000141,2]
[353995725,1740177036901,-500.0,0.00014107,2]
[353995726,1740177036910,-500.0,0.00014109,2]
[353995727,1740177036920,-3477.23,0.00014109,2]
[353995728,1740177036929,-500.0,0.00014109,2]
[353995729,1740177036939,-6424.82,0.00014109,2]
[353995730,1740177036948,-500.0,0.00014109,2]
[353995731,1740177036957,-579.82,0.00014109,2]
[353995732,1740177036966,-673.37,0.00014109,2]
[353995733,1740177036975,-1417.51259062,0.00014109,2]
[353995780,1740177038288,-500.0,0.00013698,2]
[353995781,1740177038300,-500.0,0.00013698,2]
[353995782,1740177038316,-500.0,0.0001378,2]
[353995783,1740177038326,-385.42472233,0.00013862,2]
[353995784,1740177038336,-11.57527767,0.00013862,2]
[353995785,1740177038347,-488.42472233,0.00013862,2]
[353995786,1740177038357,-500.0,0.00013862,2]
[353995788,1740177038366,-500.0,0.00013862,2]
[353995790,1740177038376,-538.91213711,0.00013862,2]
[353995792,1740177038385,-500.0,0.00013862,2]
[353995794,1740177038394,-1251.32740938,0.00014109,2]
[353995795,1740177038404,-500.0,0.00014109,2]
[353995796,1740177038413,-500.0,0.00014109,2]
[353995797,1740177038422,-1054.04,0.00014109,2]
[353995798,1740177038431,-500.0,0.00014109,2]
[353995799,1740177038440,-831.93,0.00014109,2]
[353995800,1740177038449,-500.0,0.00014109,2]
[353995801,1740177038458,-775.86,0.00014109,2]
[353995802,1740177038467,-500.0,0.00014109,2]
[353995803,1740177038476,-545.32,0.00014109,2]
[353995804,1740177038485,-575.67,0.00014109,2]
[353995805,1740177038494,-1320.73864521,0.00014109,2]
[353995806,1740177038506,-512.93135479,0.00014109,2]
[353995807,1740177038515,-500.0,0.00014109,2]
[353995808,1740177038524,-500.0,0.00014109,2]
[353995809,1740177038534,-367.06864471,0.00014109,2]
[353995810,1740177038545,-132.93135529,0.00014109,2]
[353995811,1740177038558,-139.16959178,0.00014109,2]
[353995812,1740177038570,-115.63377409,0.00014109,2]
[353995813,1740177038579,-500.0,0.00014109,2]
[353995814,1740177038588,-476.69209818,0.00014109,2]
[353995815,1740177038599,-259.61790182,0.00014109,2]
[353995816,1740177038608,-785.86,0.00014109,2]
[353995817,1740177038618,-1727.65,0.00014109,2]
[353995818,1740177038628,-500.0,0.0001419,2]
[353995819,1740177038638,-481.0785654,0.00014191,2]
[353995820,1740177038647,-3477.23,0.00014191,2]
[353995821,1740177038656,-500.0,0.00014191,2]
[353995822,1740177038666,-6424.82,0.00014191,2]
[353995823,1740177038676,-500.0,0.00014191,2]
[353995824,1740177038685,-579.82,0.00014191,2]
[353995825,1740177038694,-673.37,0.00014191,2]
[353995826,1740177038704,-2668.84,0.00014191,2]
[353995827,1740177038713,-500.0,0.00014191,2]
[353995828,1740177038722,-500.0,0.00014191,2]
[353995829,1740177038731,-1054.04,0.00014191,2]
[353995830,1740177038740,-305.69,0.00014191,2]
[353995831,1740177038749,-831.93,0.00014191,2]
[353995832,1740177038757,-500.0,0.00014191,2]
[353995833,1740177038767,-775.86,0.00014191,2]
[353995834,1740177038776,-500.0,0.00014191,2]
[353995835,1740177038785,-545.32,0.00014191,2]
[353995836,1740177038794,-575.67,0.00014191,2]
[353995837,1740177038805,-1833.67,0.00014191,2]
[353995838,1740177038814,-500.0,0.00014191,2]
[353995839,1740177038823,-500.0,0.00014191,2]
[353995840,1740177038832,-500.0,0.00014191,2]
[353995841,1740177038841,-500.0,0.00014191,2]
[353995842,1740177038850,-736.31,0.00014191,2]
[353995843,1740177038859,-785.86,0.00014191,2]
[353995844,1740177038870,-1727.65,0.00014191,2]
[353995845,1740177038879,-236.59682932,0.00014199,2]
[353995846,1740177038889,-151.0,0.000142,2]
[353995847,1740177038898,-151.0,0.000142,2]
[353995848,1740177038907,-1000.0,0.00014221,2]
[353995849,1740177038917,-3477.23,0.00014273,2]